[Event "Titled Tuesday Blitz November 15 Late 2022"]
[White "Nakamura, Hikaru"]
[Black "Yuan, Qingyu"]
[WhiteFideId "2016192"]
[BlackFideId "8609772"]
[WhiteElo "2909"]
[BlackElo "2359"]
[Result "1-0"]
[Round "02"]
[TimeControl "180+1"]
[Date "2022.11.15"]
[WhiteClock "0:01:46"]
[BlackClock "0:00:40"]

1. b4 {[%clk 0:03:00]}  d5 {[%clk 0:02:58]} 2. Bb2 {[%clk 0:03:00]}  Bg4 {[%clk 0:02:58]} 3. a3 {[%clk 0:02:59]}  e6 {[%clk 0:02:55]} 4. h3 {[%clk 0:03:00]}  Bh5 {[%clk 0:02:55]} 5. d3 {[%clk 0:03:00]}  Nd7 {[%clk 0:02:51]} 6. Nd2 {[%clk 0:03:00]}  a5 {[%clk 0:02:41]} 7. Ngf3 {[%clk 0:02:57]}  h6 {[%clk 0:02:33]} 8. b5 {[%clk 0:02:54]}  Ngf6 {[%clk 0:02:29]} 9. c4 {[%clk 0:02:54]}  Be7 {[%clk 0:02:24]} 10. g4 {[%clk 0:02:51]}  Bg6 {[%clk 0:02:23]} 11. Bg2 {[%clk 0:02:51]}  Nb6 {[%clk 0:02:18]} 12. cxd5 {[%clk 0:02:45]}  exd5 {[%clk 0:02:13]} 13. Nd4 {[%clk 0:02:45]}  a4 {[%clk 0:02:08]} 14. f4 {[%clk 0:02:41]}  Bd6 {[%clk 0:01:58]} 15. O-O {[%clk 0:02:39]}  O-O {[%clk 0:01:52]} 16. Qc2 {[%clk 0:02:31]}  Nfd7 {[%clk 0:01:47]} 17. Kh1 {[%clk 0:02:19]}  Re8 {[%clk 0:01:45]} 18. Rae1 {[%clk 0:02:18]}  Qh4 {[%clk 0:01:35]} 19. Qc3 {[%clk 0:02:05]}  f6 {[%clk 0:01:31]} 20. N2f3 {[%clk 0:01:58]}  Qg3 {[%clk 0:01:24]} 21. e3 {[%clk 0:01:58]}  Rxe3 {[%clk 0:01:03]} 22. Rxe3 {[%clk 0:01:56]}  Qxf4 {[%clk 0:01:03]} 23. Bc1 {[%clk 0:01:55]}  Kh7 {[%clk 0:00:55]} 24. Ree1 {[%clk 0:01:46]}  Qg3 {[%clk 0:00:52]} 25. Ne2 {[%clk 0:01:46]}  d4 {[%clk 0:00:40]} 26. Qxd4 {[%clk 0:01:46]}  Be5 {[%clk 0:00:40]} 27. Nxg3 {[%clk 0:01:45]}  Bxd4 {[%clk 0:00:40]} 28. Nxd4 {[%clk 0:01:46]} 1-0


[Site "https://www.chess.com"]

[Event "Titled Tuesday Blitz November 15 Late 2022"]
[White "Osmak, Yuliia"]
[Black "Pultinevicius, Paulius"]
[WhiteFideId "14101602"]
[BlackFideId "12809390"]
[WhiteElo "2328"]
[BlackElo "2493"]
[Result "0-1"]
[Round "02"]
[TimeControl "180+1"]
[Date "2022.11.16"]
[WhiteClock "0:00:06"]
[BlackClock "0:00:12"]

1. d4 {[%clk 0:03:00]}  Nf6 {[%clk 0:02:58]} 2. c4 {[%clk 0:03:00]}  c6 {[%clk 0:02:56]} 3. Nf3 {[%clk 0:02:54]}  d5 {[%clk 0:02:56]} 4. Nc3 {[%clk 0:02:51]}  e6 {[%clk 0:02:54]} 5. Bg5 {[%clk 0:02:49]}  dxc4 {[%clk 0:02:51]} 6. e4 {[%clk 0:02:47]}  h6 {[%clk 0:02:51]} 7. Bxf6 {[%clk 0:02:46]}  Qxf6 {[%clk 0:02:51]} 8. Bxc4 {[%clk 0:02:46]}  Bb4 {[%clk 0:02:50]} 9. O-O {[%clk 0:02:43]}  O-O {[%clk 0:02:50]} 10. e5 {[%clk 0:02:40]}  Qe7 {[%clk 0:02:47]} 11. Qe2 {[%clk 0:02:38]}  Rd8 {[%clk 0:02:44]} 12. Rad1 {[%clk 0:02:34]}  Nd7 {[%clk 0:02:42]} 13. Qe4 {[%clk 0:02:32]}  Rb8 {[%clk 0:02:34]} 14. Bd3 {[%clk 0:02:31]}  Nf8 {[%clk 0:02:35]} 15. Qg4 {[%clk 0:02:29]}  Bxc3 {[%clk 0:02:15]} 16. bxc3 {[%clk 0:02:29]}  b5 {[%clk 0:02:11]} 17. Nd2 {[%clk 0:02:23]}  c5 {[%clk 0:02:06]} 18. Ne4 {[%clk 0:02:17]}  cxd4 {[%clk 0:02:00]} 19. cxd4 {[%clk 0:02:18]}  Bb7 {[%clk 0:01:26]} 20. Nd6 {[%clk 0:02:17]}  Bd5 {[%clk 0:01:22]} 21. Bxb5 {[%clk 0:02:01]}  Bxa2 {[%clk 0:01:17]} 22. Bd3 {[%clk 0:01:51]}  Bd5 {[%clk 0:01:13]} 23. f4 {[%clk 0:01:50]}  Rb2 {[%clk 0:00:48]} 24. Be4 {[%clk 0:01:49]}  f5 {[%clk 0:00:33]} 25. exf6 {[%clk 0:01:11]}  Qxf6 {[%clk 0:00:33]} 26. Bxd5 {[%clk 0:00:52]}  Rxd6 {[%clk 0:00:33]} 27. Bf3 {[%clk 0:00:46]}  Rxd4 {[%clk 0:00:34]} 28. Rxd4 {[%clk 0:00:40]}  Qxd4+ {[%clk 0:00:35]} 29. Kh1 {[%clk 0:00:39]}  a5 {[%clk 0:00:36]} 30. h3 {[%clk 0:00:33]}  a4 {[%clk 0:00:35]} 31. Rd1 {[%clk 0:00:33]}  Qb4 {[%clk 0:00:34]} 32. Rd8 {[%clk 0:00:31]}  Qe7 {[%clk 0:00:23]} 33. Ra8 {[%clk 0:00:30]}  a3 {[%clk 0:00:23]} 34. f5 {[%clk 0:00:26]}  a2 {[%clk 0:00:23]} 35. Kh2 {[%clk 0:00:15]}  Qd6+ {[%clk 0:00:18]} 36. Qg3 {[%clk 0:00:15]}  Qxg3+ {[%clk 0:00:11]} 37. Kxg3 {[%clk 0:00:16]}  Kf7 {[%clk 0:00:11]} 38. fxe6+ {[%clk 0:00:14]}  Kxe6 {[%clk 0:00:09]} 39. Ra6+ {[%clk 0:00:09]}  Ke5 {[%clk 0:00:07]} 40. Ra5+ {[%clk 0:00:08]}  Kd4 {[%clk 0:00:06]} 41. Bd5 {[%clk 0:00:08]}  Ng6 {[%clk 0:00:05]} 42. Rxa2 {[%clk 0:00:04]}  Rb6 {[%clk 0:00:03]} 43. Bf3 {[%clk 0:00:04]}  Ne5 {[%clk 0:00:03]} 44. Rd2+ {[%clk 0:00:04]}  Ke3 {[%clk 0:00:04]} 45. Re2+ {[%clk 0:00:05]}  Kd4 {[%clk 0:00:03]} 46. Re4+ {[%clk 0:00:06]}  Kd5 {[%clk 0:00:03]} 47. Rb4+ {[%clk 0:00:06]}  Nxf3 {[%clk 0:00:04]} 48. Rxb6 {[%clk 0:00:06]}  Nd4 {[%clk 0:00:04]} 49. Rg6 {[%clk 0:00:06]}  Ke5 {[%clk 0:00:03]} 50. Kh2 {[%clk 0:00:04]}  Ne6 {[%clk 0:00:03]} 51. Rg3 {[%clk 0:00:04]}  Kf5 {[%clk 0:00:04]} 52. Rf3+ {[%clk 0:00:04]}  Kg6 {[%clk 0:00:03]} 53. Rf1 {[%clk 0:00:04]}  Kh7 {[%clk 0:00:04]} 54. Ra1 {[%clk 0:00:05]}  Ng5 {[%clk 0:00:04]} 55. Ra6 {[%clk 0:00:05]}  Ne4 {[%clk 0:00:05]} 56. h4 {[%clk 0:00:05]}  Nc5 {[%clk 0:00:05]} 57. Rc6 {[%clk 0:00:05]}  Ne4 {[%clk 0:00:05]} 58. Kh3 {[%clk 0:00:05]}  Nf2+ {[%clk 0:00:06]} 59. Kg3 {[%clk 0:00:04]}  Nd3 {[%clk 0:00:06]} 60. Ra6 {[%clk 0:00:04]}  Nc5 {[%clk 0:00:06]} 61. Ra7 {[%clk 0:00:04]}  Ne4+ {[%clk 0:00:07]} 62. Kf4 {[%clk 0:00:04]}  Nf6 {[%clk 0:00:07]} 63. g4 {[%clk 0:00:04]}  Nd5+ {[%clk 0:00:07]} 64. Ke5 {[%clk 0:00:04]}  Nb4 {[%clk 0:00:08]} 65. g5 {[%clk 0:00:04]}  Nc6+ {[%clk 0:00:08]} 66. Ke6 {[%clk 0:00:04]}  Nxa7 {[%clk 0:00:09]} 67. Kf7 {[%clk 0:00:04]}  hxg5 {[%clk 0:00:09]} 68. hxg5 {[%clk 0:00:04]}  g6 {[%clk 0:00:09]} 69. Kf6 {[%clk 0:00:03]}  Nb5 {[%clk 0:00:10]} 70. Kf7 {[%clk 0:00:04]}  Nc3 {[%clk 0:00:11]} 71. Kf6 {[%clk 0:00:04]}  Ne4+ {[%clk 0:00:11]} 72. Kf7 {[%clk 0:00:05]}  Nxg5+ {[%clk 0:00:11]} 73. Kf6 {[%clk 0:00:06]}  Kh6 {[%clk 0:00:12]} 0-1


[Site "https://www.chess.com"]

[Event "Titled Tuesday Blitz November 15 Late 2022"]
[White "Papayan, Oleg"]
[Black "Ardila, Oscar Humberto"]
[WhiteFideId "4193911"]
[BlackFideId "4404742"]
[WhiteElo "2153"]
[BlackElo "1959"]
[Result "0-1"]
[Round "02"]
[TimeControl "180+1"]
[Date "2022.11.16"]
[WhiteClock "0:00:06"]
[BlackClock "0:00:55"]

1. e4 {[%clk 0:02:56]}  e5 {[%clk 0:03:00]} 2. Nf3 {[%clk 0:02:55]}  Nf6 {[%clk 0:03:00]} 3. d4 {[%clk 0:02:54]}  Nxe4 {[%clk 0:03:00]} 4. Bd3 {[%clk 0:02:53]}  d5 {[%clk 0:03:00]} 5. Nxe5 {[%clk 0:02:53]}  Nf6 {[%clk 0:03:01]} 6. O-O {[%clk 0:02:52]}  Be7 {[%clk 0:03:01]} 7. Re1 {[%clk 0:02:42]}  O-O {[%clk 0:03:01]} 8. c4 {[%clk 0:02:42]}  c6 {[%clk 0:03:01]} 9. Nc3 {[%clk 0:02:42]}  Nbd7 {[%clk 0:02:59]} 10. Bf4 {[%clk 0:02:37]}  dxc4 {[%clk 0:02:56]} 11. Be4 {[%clk 0:02:36]}  Nxe5 {[%clk 0:02:48]} 12. Bxe5 {[%clk 0:02:29]}  Nd5 {[%clk 0:02:44]} 13. Qh5 {[%clk 0:02:22]}  f5 {[%clk 0:02:40]} 14. Bf3 {[%clk 0:01:48]}  Bf6 {[%clk 0:02:37]} 15. Be2 {[%clk 0:01:36]}  b5 {[%clk 0:02:35]} 16. a4 {[%clk 0:01:34]}  b4 {[%clk 0:02:16]} 17. Na2 {[%clk 0:01:34]}  Ba6 {[%clk 0:02:15]} 18. Rac1 {[%clk 0:01:35]}  Bxe5 {[%clk 0:02:09]} 19. dxe5 {[%clk 0:01:36]}  Nf4 {[%clk 0:02:07]} 20. Qf3 {[%clk 0:01:23]}  Nxe2+ {[%clk 0:01:59]} 21. Qxe2 {[%clk 0:01:09]}  Qa5 {[%clk 0:01:57]} 22. e6 {[%clk 0:01:06]}  Rae8 {[%clk 0:01:55]} 23. Rxc4 {[%clk 0:00:46]}  Bxc4 {[%clk 0:01:53]} 24. Qxc4 {[%clk 0:00:47]}  Qd5 {[%clk 0:01:53]} 25. Qxd5 {[%clk 0:00:41]}  cxd5 {[%clk 0:01:54]} 26. Nxb4 {[%clk 0:00:40]}  Rf6 {[%clk 0:01:53]} 27. e7 {[%clk 0:00:37]}  Rd6 {[%clk 0:01:53]} 28. f4 {[%clk 0:00:31]}  Rd7 {[%clk 0:01:50]} 29. Nc6 {[%clk 0:00:31]}  Rd6 {[%clk 0:01:40]} 30. Nxa7 {[%clk 0:00:28]}  d4 {[%clk 0:01:40]} 31. Nb5 {[%clk 0:00:23]}  Rd7 {[%clk 0:01:40]} 32. Kf2 {[%clk 0:00:23]}  d3 {[%clk 0:01:39]} 33. a5 {[%clk 0:00:22]}  Kf7 {[%clk 0:01:37]} 34. a6 {[%clk 0:00:21]}  d2 {[%clk 0:01:31]} 35. Rd1 {[%clk 0:00:21]}  Rexe7 {[%clk 0:01:31]} 36. a7 {[%clk 0:00:21]}  Re8 {[%clk 0:01:13]} 37. Kf3 {[%clk 0:00:22]}  Ra8 {[%clk 0:01:07]} 38. b4 {[%clk 0:00:21]}  Kf6 {[%clk 0:00:59]} 39. Ke3 {[%clk 0:00:21]}  Rb7 {[%clk 0:00:58]} 40. Nd4 {[%clk 0:00:07]}  Rxb4 {[%clk 0:00:56]} 41. Rxd2 {[%clk 0:00:06]}  Rxa7 {[%clk 0:00:56]} 42. Nf3 {[%clk 0:00:06]}  Ra3+ {[%clk 0:00:56]} 43. Kf2 {[%clk 0:00:06]}  Rxf4 {[%clk 0:00:55]} 44. g3 {[%clk 0:00:06]}  Rfxf3+ {[%clk 0:00:55]} 0-1


[Site "https://www.chess.com"]

[Event "Titled Tuesday Blitz November 15 Late 2022"]
[White "Paravyan, David"]
[Black "Leiva, Gianmarco"]
[WhiteFideId "4194985"]
[BlackFideId "3804399"]
[WhiteElo "2546"]
[BlackElo "2286"]
[Result "1-0"]
[Round "02"]
[TimeControl "180+1"]
[Date "2022.11.15"]
[WhiteClock "0:00:53"]
[BlackClock "0:00:05"]

1. e4 {[%clk 0:03:00]}  c5 {[%clk 0:02:59]} 2. Nf3 {[%clk 0:02:56]}  d6 {[%clk 0:02:59]} 3. d4 {[%clk 0:02:56]}  cxd4 {[%clk 0:02:59]} 4. Nxd4 {[%clk 0:02:56]}  Nf6 {[%clk 0:02:59]} 5. Nc3 {[%clk 0:02:56]}  a6 {[%clk 0:02:59]} 6. Bg5 {[%clk 0:02:57]}  Nbd7 {[%clk 0:02:58]} 7. Bc4 {[%clk 0:02:52]}  Qb6 {[%clk 0:02:58]} 8. Bb3 {[%clk 0:02:52]}  e6 {[%clk 0:02:58]} 9. f3 {[%clk 0:02:50]}  Be7 {[%clk 0:02:56]} 10. h4 {[%clk 0:02:50]}  Nc5 {[%clk 0:02:52]} 11. g4 {[%clk 0:02:49]}  Qc7 {[%clk 0:02:48]} 12. Qe2 {[%clk 0:02:42]}  Bd7 {[%clk 0:02:43]} 13. O-O-O {[%clk 0:02:41]}  O-O-O {[%clk 0:02:41]} 14. Kb1 {[%clk 0:02:39]}  Kb8 {[%clk 0:02:37]} 15. Be3 {[%clk 0:02:37]}  Bc8 {[%clk 0:02:29]} 16. Qf2 {[%clk 0:02:37]}  Rhe8 {[%clk 0:02:15]} 17. g5 {[%clk 0:02:29]}  Nfd7 {[%clk 0:02:15]} 18. h5 {[%clk 0:02:26]}  Ne5 {[%clk 0:02:10]} 19. Qe2 {[%clk 0:02:16]}  Nc6 {[%clk 0:02:04]} 20. Nxc6+ {[%clk 0:02:14]}  Qxc6 {[%clk 0:02:04]} 21. Rhg1 {[%clk 0:02:10]}  Bd7 {[%clk 0:01:57]} 22. Bd4 {[%clk 0:02:08]}  Bf8 {[%clk 0:01:50]} 23. Qf2 {[%clk 0:02:07]}  Rc8 {[%clk 0:01:49]} 24. Rd2 {[%clk 0:02:05]}  Red8 {[%clk 0:01:10]} 25. Rgd1 {[%clk 0:02:03]}  Be8 {[%clk 0:01:09]} 26. Qg3 {[%clk 0:01:59]}  Ka8 {[%clk 0:01:07]} 27. Be3 {[%clk 0:01:50]}  b5 {[%clk 0:00:49]} 28. Bf4 {[%clk 0:01:46]}  b4 {[%clk 0:00:44]} 29. Ne2 {[%clk 0:01:46]}  Nxb3 {[%clk 0:00:44]} 30. axb3 {[%clk 0:01:45]}  e5 {[%clk 0:00:44]} 31. Bxe5 {[%clk 0:01:37]}  Kb7 {[%clk 0:00:20]} 32. Bd4 {[%clk 0:01:35]}  Bd7 {[%clk 0:00:18]} 33. Nf4 {[%clk 0:01:34]}  Be6 {[%clk 0:00:18]} 34. Nxe6 {[%clk 0:01:27]}  fxe6 {[%clk 0:00:19]} 35. Qg4 {[%clk 0:01:27]}  d5 {[%clk 0:00:15]} 36. g6 {[%clk 0:01:20]}  hxg6 {[%clk 0:00:12]} 37. Qxg6 {[%clk 0:01:18]}  dxe4 {[%clk 0:00:12]} 38. Qxe4 {[%clk 0:01:19]}  Qxe4 {[%clk 0:00:11]} 39. fxe4 {[%clk 0:01:20]}  a5 {[%clk 0:00:06]} 40. c3 {[%clk 0:01:17]}  a4 {[%clk 0:00:05]} 41. bxa4 {[%clk 0:01:17]}  b3 {[%clk 0:00:04]} 42. Be3 {[%clk 0:01:10]}  Be7 {[%clk 0:00:04]} 43. Rxd8 {[%clk 0:01:10]}  Bxd8 {[%clk 0:00:04]} 44. Rd7+ {[%clk 0:01:01]}  Bc7 {[%clk 0:00:04]} 45. Bf4 {[%clk 0:00:59]}  Rf8 {[%clk 0:00:04]} 46. Rxc7+ {[%clk 0:00:54]}  Kb6 {[%clk 0:00:05]} 47. a5+ {[%clk 0:00:54]}  Kxa5 {[%clk 0:00:05]} 48. Bc1 {[%clk 0:00:53]} 1-0


[Site "https://www.chess.com"]

[Event "Titled Tuesday Blitz November 15 Late 2022"]
[White "Pein, Jonathan"]
[Black "Chirilov, James A"]
[WhiteFideId "417092"]
[BlackFideId "30976677"]
[WhiteElo "2227"]
[BlackElo "1790"]
[Result "0-1"]
[Round "02"]
[TimeControl "180+1"]
[Date "2022.11.16"]
[WhiteClock "0:00:17"]
[BlackClock "0:00:14"]

1. d4 {[%clk 0:03:00]}  Nf6 {[%clk 0:03:00]} 2. f3 {[%clk 0:03:00]}  g6 {[%clk 0:02:48]} 3. e4 {[%clk 0:03:00]}  d6 {[%clk 0:02:48]} 4. Nc3 {[%clk 0:03:00]}  Bg7 {[%clk 0:02:48]} 5. Be3 {[%clk 0:03:00]}  O-O {[%clk 0:02:48]} 6. Qd2 {[%clk 0:03:01]}  Nbd7 {[%clk 0:02:45]} 7. O-O-O {[%clk 0:03:00]}  c5 {[%clk 0:02:46]} 8. Nge2 {[%clk 0:02:59]}  Qc7 {[%clk 0:02:43]} 9. g4 {[%clk 0:02:56]}  cxd4 {[%clk 0:02:38]} 10. Nxd4 {[%clk 0:02:56]}  a6 {[%clk 0:02:35]} 11. h4 {[%clk 0:02:54]}  h5 {[%clk 0:02:22]} 12. gxh5 {[%clk 0:02:45]}  Nxh5 {[%clk 0:02:23]} 13. Nd5 {[%clk 0:02:44]}  Qd8 {[%clk 0:02:21]} 14. Bh6 {[%clk 0:02:38]}  e6 {[%clk 0:02:15]} 15. Bxg7 {[%clk 0:02:37]}  Kxg7 {[%clk 0:02:12]} 16. Qc3 {[%clk 0:02:25]}  Ne5 {[%clk 0:01:51]} 17. Nc7 {[%clk 0:02:18]}  Rb8 {[%clk 0:01:45]} 18. f4 {[%clk 0:02:13]}  Nxf4 {[%clk 0:01:38]} 19. h5 {[%clk 0:02:14]}  Qg5 {[%clk 0:01:32]} 20. Kb1 {[%clk 0:02:08]}  Bd7 {[%clk 0:01:27]} 21. hxg6 {[%clk 0:02:05]}  Nfxg6 {[%clk 0:01:28]} 22. Bh3 {[%clk 0:01:35]}  Qe7 {[%clk 0:00:47]} 23. Qe3 {[%clk 0:01:13]}  Rh8 {[%clk 0:00:44]} 24. Nf5+ {[%clk 0:01:06]}  exf5 {[%clk 0:00:42]} 25. Nd5 {[%clk 0:01:06]}  Qh4 {[%clk 0:00:35]} 26. exf5 {[%clk 0:01:05]}  Bxf5 {[%clk 0:00:29]} 27. Rh2 {[%clk 0:00:34]}  Bxh3 {[%clk 0:00:27]} 28. Rdh1 {[%clk 0:00:34]}  Qc4 {[%clk 0:00:21]} 29. Nb6 {[%clk 0:00:31]}  Qe6 {[%clk 0:00:18]} 30. a4 {[%clk 0:00:30]}  Bf5 {[%clk 0:00:16]} 31. b3 {[%clk 0:00:17]}  Rxh2 {[%clk 0:00:15]} 32. Rxh2 {[%clk 0:00:17]}  Rh8 {[%clk 0:00:16]} 33. Rd2 {[%clk 0:00:17]}  Rh3 {[%clk 0:00:14]} 0-1


[Site "https://www.chess.com"]

[Event "Titled Tuesday Blitz November 15 Late 2022"]
[White "Petrovic, Aleksa"]
[Black "chess50years"]
[WhiteFideId "967629"]
[WhiteElo "2224"]
[BlackElo "2138"]
[Result "1-0"]
[Round "02"]
[TimeControl "180+1"]
[Date "2022.11.16"]
[WhiteClock "0:01:51"]
[BlackClock "0:00:09"]

1. d4 {[%clk 0:03:00]}  Nf6 {[%clk 0:02:58]} 2. c4 {[%clk 0:03:01]}  e6 {[%clk 0:02:58]} 3. Nf3 {[%clk 0:03:01]}  Bb4+ {[%clk 0:02:58]} 4. Bd2 {[%clk 0:02:59]}  a5 {[%clk 0:02:57]} 5. g3 {[%clk 0:02:59]}  O-O {[%clk 0:02:56]} 6. Bg2 {[%clk 0:02:58]}  d6 {[%clk 0:02:57]} 7. O-O {[%clk 0:02:58]}  Qe7 {[%clk 0:02:57]} 8. Bc1 {[%clk 0:02:57]}  a4 {[%clk 0:02:50]} 9. a3 {[%clk 0:02:56]}  Ba5 {[%clk 0:02:50]} 10. Qxa4 {[%clk 0:02:57]}  c5 {[%clk 0:02:42]} 11. Qc2 {[%clk 0:02:45]}  Nc6 {[%clk 0:02:33]} 12. dxc5 {[%clk 0:02:43]}  dxc5 {[%clk 0:02:29]} 13. Nc3 {[%clk 0:02:44]}  h6 {[%clk 0:02:15]} 14. Rd1 {[%clk 0:02:38]}  Bxc3 {[%clk 0:01:59]} 15. Qxc3 {[%clk 0:02:36]}  e5 {[%clk 0:01:56]} 16. Ne1 {[%clk 0:02:28]}  Nd4 {[%clk 0:01:49]} 17. Rd2 {[%clk 0:02:23]}  Bg4 {[%clk 0:01:41]} 18. f3 {[%clk 0:02:19]}  Be6 {[%clk 0:01:36]} 19. e3 {[%clk 0:02:18]}  Nc6 {[%clk 0:01:34]} 20. b3 {[%clk 0:02:14]}  Rfd8 {[%clk 0:01:32]} 21. Raa2 {[%clk 0:02:13]}  g6 {[%clk 0:01:05]} 22. Rxd8+ {[%clk 0:02:12]}  Rxd8 {[%clk 0:01:04]} 23. Rd2 {[%clk 0:02:12]}  h5 {[%clk 0:00:53]} 24. Rxd8+ {[%clk 0:02:09]}  Qxd8 {[%clk 0:00:54]} 25. Nd3 {[%clk 0:02:07]}  Nd7 {[%clk 0:00:50]} 26. Bb2 {[%clk 0:02:06]}  f6 {[%clk 0:00:46]} 27. f4 {[%clk 0:02:02]}  Qa5 {[%clk 0:00:30]} 28. Bxc6 {[%clk 0:01:52]}  Qxc3 {[%clk 0:00:26]} 29. Bxc3 {[%clk 0:01:53]}  bxc6 {[%clk 0:00:25]} 30. fxe5 {[%clk 0:01:54]}  fxe5 {[%clk 0:00:24]} 31. Nxe5 {[%clk 0:01:55]}  Nxe5 {[%clk 0:00:21]} 32. Bxe5 {[%clk 0:01:56]}  Kf7 {[%clk 0:00:20]} 33. Bd6 {[%clk 0:01:56]}  Bf5 {[%clk 0:00:18]} 34. Bxc5 {[%clk 0:01:53]}  Bc2 {[%clk 0:00:18]} 35. b4 {[%clk 0:01:53]}  Bb3 {[%clk 0:00:18]} 36. e4 {[%clk 0:01:53]}  Bxc4 {[%clk 0:00:17]} 37. Kf2 {[%clk 0:01:54]}  Bb5 {[%clk 0:00:15]} 38. Ke3 {[%clk 0:01:54]}  Ke6 {[%clk 0:00:16]} 39. Kf4 {[%clk 0:01:54]}  Bd3 {[%clk 0:00:14]} 40. a4 {[%clk 0:01:53]}  Kf6 {[%clk 0:00:11]} 41. a5 {[%clk 0:01:53]}  g5+ {[%clk 0:00:10]} 42. Ke3 {[%clk 0:01:53]}  Bb5 {[%clk 0:00:10]} 43. Kd4 {[%clk 0:01:53]}  Ke6 {[%clk 0:00:10]} 44. Bf8 {[%clk 0:01:52]}  g4 {[%clk 0:00:10]} 45. Kc5 {[%clk 0:01:51]}  Ba4 {[%clk 0:00:09]} 46. a6 {[%clk 0:01:51]} 1-0


[Site "https://www.chess.com"]

[Event "Titled Tuesday Blitz November 15 Late 2022"]
[White "Premnath, R."]
[Black "Sjugirov, Sanan"]
[WhiteFideId "5021928"]
[BlackFideId "4189302"]
[WhiteElo "2556"]
[BlackElo "2611"]
[Result "0-1"]
[Round "02"]
[TimeControl "180+1"]
[Date "2022.11.16"]
[WhiteClock "0:00:14"]
[BlackClock "0:00:07"]

1. d4 {[%clk 0:02:59]}  Nf6 {[%clk 0:02:59]} 2. c4 {[%clk 0:02:59]}  e6 {[%clk 0:02:59]} 3. Nf3 {[%clk 0:02:59]}  d5 {[%clk 0:02:57]} 4. Nc3 {[%clk 0:02:59]}  Nbd7 {[%clk 0:02:55]} 5. Bg5 {[%clk 0:02:58]}  h6 {[%clk 0:02:52]} 6. Bh4 {[%clk 0:02:58]}  c6 {[%clk 0:02:50]} 7. e3 {[%clk 0:02:58]}  Be7 {[%clk 0:02:50]} 8. Qc2 {[%clk 0:02:57]}  O-O {[%clk 0:02:49]} 9. Bd3 {[%clk 0:02:57]}  dxc4 {[%clk 0:02:48]} 10. Bxc4 {[%clk 0:02:58]}  b5 {[%clk 0:02:48]} 11. Be2 {[%clk 0:02:58]}  Bb7 {[%clk 0:02:48]} 12. O-O {[%clk 0:02:59]}  Rc8 {[%clk 0:02:41]} 13. Rfd1 {[%clk 0:02:58]}  b4 {[%clk 0:02:34]} 14. Na4 {[%clk 0:02:52]}  Qa5 {[%clk 0:02:30]} 15. Bxf6 {[%clk 0:02:38]}  Bxf6 {[%clk 0:02:26]} 16. Nc5 {[%clk 0:02:37]}  Nxc5 {[%clk 0:02:24]} 17. dxc5 {[%clk 0:02:37]}  Rfd8 {[%clk 0:02:22]} 18. Nd4 {[%clk 0:02:10]}  Bxd4 {[%clk 0:02:12]} 19. Rxd4 {[%clk 0:02:10]}  Rxd4 {[%clk 0:02:12]} 20. exd4 {[%clk 0:02:11]}  Ba6 {[%clk 0:02:10]} 21. Bf3 {[%clk 0:02:10]}  Bb5 {[%clk 0:02:06]} 22. a3 {[%clk 0:02:10]}  bxa3 {[%clk 0:02:05]} 23. bxa3 {[%clk 0:02:07]}  Ba4 {[%clk 0:01:45]} 24. Qb2 {[%clk 0:02:01]}  Rd8 {[%clk 0:01:35]} 25. h3 {[%clk 0:02:00]}  Qb5 {[%clk 0:01:31]} 26. Qc3 {[%clk 0:01:50]}  Kf8 {[%clk 0:01:15]} 27. Be4 {[%clk 0:01:48]}  Qe2 {[%clk 0:00:58]} 28. Bd3 {[%clk 0:01:43]}  Qh5 {[%clk 0:00:52]} 29. Rb1 {[%clk 0:01:30]}  Qd5 {[%clk 0:00:34]} 30. Rb4 {[%clk 0:01:30]}  Bb5 {[%clk 0:00:34]} 31. Bxb5 {[%clk 0:00:59]}  cxb5 {[%clk 0:00:35]} 32. Rxb5 {[%clk 0:00:50]}  Qxd4 {[%clk 0:00:35]} 33. Qb4 {[%clk 0:00:51]}  Qa1+ {[%clk 0:00:27]} 34. Kh2 {[%clk 0:00:51]}  Qe5+ {[%clk 0:00:28]} 35. f4 {[%clk 0:00:51]}  Qd4 {[%clk 0:00:17]} 36. Rb8 {[%clk 0:00:50]}  Qxb4 {[%clk 0:00:15]} 37. Rxd8+ {[%clk 0:00:50]}  Ke7 {[%clk 0:00:15]} 38. axb4 {[%clk 0:00:51]}  Kxd8 {[%clk 0:00:16]} 39. b5 {[%clk 0:00:49]}  Kc7 {[%clk 0:00:14]} 40. Kg3 {[%clk 0:00:49]}  Kb7 {[%clk 0:00:12]} 41. Kf3 {[%clk 0:00:46]}  a6 {[%clk 0:00:12]} 42. c6+ {[%clk 0:00:46]}  Kb6 {[%clk 0:00:12]} 43. bxa6 {[%clk 0:00:46]}  Kxa6 {[%clk 0:00:10]} 44. f5 {[%clk 0:00:31]}  exf5 {[%clk 0:00:09]} 45. Kf4 {[%clk 0:00:30]}  Kb6 {[%clk 0:00:09]} 46. Kxf5 {[%clk 0:00:30]}  Kxc6 {[%clk 0:00:09]} 47. g4 {[%clk 0:00:27]}  Kd5 {[%clk 0:00:08]} 48. h4 {[%clk 0:00:26]}  Kd6 {[%clk 0:00:06]} 49. g5 {[%clk 0:00:27]}  hxg5 {[%clk 0:00:05]} 50. hxg5 {[%clk 0:00:25]}  Ke7 {[%clk 0:00:04]} 51. Ke5 {[%clk 0:00:25]}  Kd7 {[%clk 0:00:03]} 52. Kd5 {[%clk 0:00:25]}  Kc7 {[%clk 0:00:03]} 53. Ke5 {[%clk 0:00:25]}  Kd7 {[%clk 0:00:03]} 54. Kd5 {[%clk 0:00:25]}  Ke7 {[%clk 0:00:03]} 55. Ke5 {[%clk 0:00:26]}  Kf8 {[%clk 0:00:04]} 56. Kd6 {[%clk 0:00:21]}  Ke8 {[%clk 0:00:04]} 57. Ke5 {[%clk 0:00:17]}  Ke7 {[%clk 0:00:04]} 58. Kf5 {[%clk 0:00:17]}  Kd6 {[%clk 0:00:04]} 59. Kf4 {[%clk 0:00:13]}  Ke6 {[%clk 0:00:04]} 60. Ke4 {[%clk 0:00:14]}  g6 {[%clk 0:00:04]} 61. Kf4 {[%clk 0:00:12]}  Kd5 {[%clk 0:00:04]} 62. Kf3 {[%clk 0:00:11]}  Ke5 {[%clk 0:00:04]} 63. Kg4 {[%clk 0:00:12]}  Ke4 {[%clk 0:00:05]} 64. Kg3 {[%clk 0:00:13]}  Kf5 {[%clk 0:00:05]} 65. Kh4 {[%clk 0:00:14]}  Kf4 {[%clk 0:00:06]} 66. Kh3 {[%clk 0:00:14]}  Kxg5 {[%clk 0:00:07]} 0-1


[Site "https://www.chess.com"]